Cogmind - Beta 15 *** ADVENTURER MODE // 2025.09.26 @ 20:14:48 Player: ben Result: Destroyed by as-94841 with Assembled Blade Performance ------------- Evolutions (1) 500 Regions Visited (4) 800 Robots Destroyed (21) 105 Value Destroyed (378) 378 Prototype IDs (4) 80 Alien Tech Used (0) 0 Bonus (25) 25 TOTAL SCORE: 1888 Bonus ------- Follower Combat Kills 25 Cogmind --------- Core Integrity 0/400 Matter 376/400 Energy 32/100 System Corruption 1% Temperature Cool (0) Movement Flying (840) Ox10 Location -9/Mines Parts ------- > --- POWER (2) -------- (None) > --- PROPULSION (2) --- Flight Unit Faulty Improved Flight Unit > --- UTILITY (3) ------ High-capacity Storage Unit Medium Matter Pod > --- WEAPON (2) ------- Light Assault Rifle > --- INVENTORY (20) --- Compact Wheel Compact Wheel Flight Unit Flight Unit Small Storage Unit Visual Processing Unit Sensor Array Experimental Sensor Array Hardened Medium Armor Plating Improved Light Armor Plating Tractor Beam Improved Trap Extractor (0/6) Field Recycling Unit (0) Small Laser Light Assault Rifle Mining Laser Peak State ------------ > --- POWER ------------ Ion Engine Ion Engine > --- PROPULSION ------- Wheel Wheel > --- UTILITY ---------- High-capacity Storage Unit Medium Matter Pod Medium Matter Pod > --- WEAPON ----------- Medium Laser Heavy Assault Rifle > --- INVENTORY -------- Compact Wheel Compact Wheel Flight Unit Flight Unit Flight Unit Improved Flight Unit Small Storage Unit Visual Processing Unit Sensor Array Experimental Sensor Array Hardened Medium Armor Plating Improved Light Armor Plating Tractor Beam Improved Trap Extractor Field Recycling Unit Small Laser Assault Rifle Light Assault Rifle Light Assault Rifle Mining Laser [Rating: 13] Favorites ----------- Power Ion Engine Engine Ion Engine Propulsion Wheel Wheel Wheel Flight Unit Flight Unit Utility Medium Matter Pod Storage Medium Matter Pod Weapon Medium Laser Energy Gun Medium Laser Ballistic Gun Assault Rifle Build | -11 -10 -10 -9 -9 ------- Run | Yrd Mat Min Mat Min Slots Evolved 2 | . . . 2 . Power 1 | . . . 1 . Propulsion . | . . . . . Utility 1 | . . . 1 . Weapon . | . . . . . Parts Attached 22 | 6 10 . 4 2 Power 4 | 1 2 . 1 . Engine 4 | 1 2 . 1 . Core . | . . . . . Reactor . | . . . . . Propulsion 8 | 2 4 . . 2 Treads . | . . . . . Leg . | . . . . . Wheel 4 | 2 2 . . . Hover . | . . . . . Flight 4 | . 2 . . 2 Utility 5 | 1 2 . 2 . Device . | . . . . . Storage 5 | 1 2 . 2 . Processor . | . . . . . Hackware . | . . . . . Protection . | . . . . . Artifact . | . . . . . Weapon 5 | 2 2 . 1 . Energy Gun 1 | 1 . . . . Energy Cannon . | . . . . . Ballistic Gun 4 | 1 2 . 1 . Ballistic Cannon . | . . . . . Launcher . | . . . . . Special Weapon . | . . . . . Impact Weapon . | . . . . . Slashing Weapon . | . . . . . Piercing Weapon . | . . . . . Special Melee Weapon . | . . . . . Unidentified Prototypes 1 | . . . . 1 Parts Lost 10 | . 2 . . 8 Power 4 | . 2 . . 2 Propulsion 2 | . . . . 2 Utility 1 | . . . . 1 Weapon 3 | . . . . 3 Highest Loss Streak 8 | . 1 . . 8 To Critical Strikes . | . . . . . Average Backups 10 | 1 7 11 19 19 Power . | . . . . . Propulsion 3 | . 2 4 5 5 Utility 4 | . 2 5 9 9 Weapon 1 | . . 2 4 4 Tool/Special . | . . . . . Unused Backups 16 | 1 3 1 1 10 Power 1 | . 1 . . . Propulsion 3 | 1 1 . . 1 Utility 10 | . . 1 1 8 Weapon 2 | . 1 . . 1 Tool/Special . | . . . . . Average Slot Usage (%) 95 | . 95 100 89 84 Engine 13 | . 13 14 13 18 Wheel 26 | . 27 28 22 12 Storage 28 | . 27 28 33 31 Energy Gun 10 | . 6 14 11 7 Ballistic Gun 14 | . 17 14 9 11 Peak Build Rating 13 | 6 8 10 13 13 Average Rating 8 | 4 7 8 11 11 On Entrance 7 | . 6 8 10 13 Naked Turns . | . . . . . Heaviest Build 59 | 14 51 51 59 59 Greatest Support 32 | 26 32 20 20 20 Greatest Overweight (x) 5 | . 4 2 2 5 Average Overweight (x) 1 | . . 2 2 2 Largest Inventory Capacity 20 | 8 20 20 20 20 Average Capacity 15 | 7 12 20 20 20 Most Carried 20 | 5 10 17 20 20 Average Carried 10 | 1 7 11 19 19 Final Capacity 20 | 8 20 20 20 20 Final Carried 20 | 2 10 17 20 16 Class Distribution -------------------- 100% | Mutant Dominant Class ---------------- Mutant | -10/Materials Mutant | -10/Mines Mutant | -9/Materials Mutant | -9/Mines Resources | -11 -10 -10 -9 -9 ----------- Run | Yrd Mat Min Mat Min Matter Collected 655 | 260 269 . 126 . Remotely . | . . . . . Salvage Created 537 | . 308 . 197 32 Parts 38 | . 27 . 11 . Haulers Intercepted . | . . . . . Recyclers Shooed 1 | . . . 1 . Parts Field Recycled . | . . . . . Retrieved Matter . | . . . . . Parts Self-Destructed . | . . . . . Prevented . | . . . . . Kills | -11 -10 -10 -9 -9 ------- Run | Yrd Mat Min Mat Min Combat Hostiles Destroyed 17 | . 11 . 3 3 Guns 17 | . 11 . 3 3 Classes Destroyed 7 | . 5 . 1 1 Worker 2 | . 1 . 1 . Builder 1 | . 1 . . . Watcher 4 | . 2 . 2 . Swarmer 9 | . 9 . . . Grunt 4 | . 2 . 2 . Sentry 1 | . . . 1 . Assembled 3 | . . . . 3 Best Kill Streak 7 | . 7 . 2 2 Combat Bots Only 6 | . 6 . 2 2 Max Kills in Single Turn 2 | . 2 . 1 1 Gunslinging 1 | . 1 . . . Exploded . | . . . . . Melee . | . . . . . Uniques/NPCs Destroyed . | . . . . . Combat | -11 -10 -10 -9 -9 -------- Run | Yrd Mat Min Mat Min Hostile Shots Fired 165 | . 87 . 14 64 Missed 59 | . 35 . 8 16 Hits 106 | . 52 . 6 48 Melee 10 | . . . . 10 Projectile 96 | . 52 . 6 38 AOE 14 | . . . . 14 Critical Strikes 1 | . 1 . . . Part Disruptions 1 | . . . . 1 Damage Taken 1452 | . 374 12 132 934 Core 482 | . 72 . 22 388 Absorbed by Shields . | . . . . . Ignored by Resistances 413 | . 117 4 35 257 Regen/Repaired (Parts) 199 | . 120 . 79 . Core Remaining (%) 85 | 100 . 71 . . Volleys Fired 62 | . 33 . 18 11 Largest 2 | . 2 . 2 2 Hottest 73 | . 70 . 73 73 Shots Fired 109 | . 66 . 25 18 Gun 109 | . 66 . 25 18 Cannon . | . . . . . Launcher . | . . . . . Special . | . . . . . Kinetic 73 | . 52 . 8 13 Thermal 36 | . 14 . 17 5 Explosive . | . . . . . Electromagnetic . | . . . . . Robot Hit Streak 18 | . 17 . 18 9 Robot Miss Streak 5 | . 4 . 5 2 Penetration Max . | . . . . . Secondary Targets 3 | . 3 . . . Max Gunslinging Chain 1 | . 1 . . . Shots Hit Robots 75 | . 45 . 15 15 Core Hits 38 | . 22 . 8 8 Critical Kills 1 | . 1 . . . Critical Parts Destroyed . | . . . . . Critical Strikes 5 | . 3 . 2 . Burn 4 | . 2 . 2 . Destroy 1 | . 1 . . . Melee Attacks . | . . . . . Impact . | . . . . . Slashing . | . . . . . Piercing . | . . . . . Sneak Attacks . | . . . . . Combat Hostiles . | . . . . . Follow-up Attacks . | . . . . . Damage Inflicted 909 | . 466 . 262 181 Guns 869 | . 466 . 222 181 Cannons . | . . . . . Explosions . | . . . . . Melee . | . . . . . Ramming 40 | . . . 40 . Kinetic 551 | . 351 . 70 130 Thermal 318 | . 115 . 152 51 Explosive . | . . . . . Electromagnetic . | . . . . . Impact . | . . . . . Slashing . | . . . . . Piercing . | . . . . . Highest Corruption 1 | . . . . 1 Average Corruption 1 | . . . . 1 Corruption Purged . | . . . . . Corruption Blocked . | . . . . . Effects 1 | . . . . 1 Data Loss (minor) 1 | . . . . 1 Overload Shots . | . . . . . Overflow Damage 4 | . . . 4 . Projectiles . | . . . . . Explosions . | . . . . . Melee 4 | . . . 4 . Knockbacks . | . . . . . Impact . | . . . . . Kinetic . | . . . . . Secondary . | . . . . . Self-Inflicted Damage 18 | . . . 18 . Shots . | . . . . . Rammed 5 | . . . 5 . Targets Rammed 5 | . . . 5 . Kicked . | . . . . . Crushed . | . . . . . Highest Temperature 94 | . 69 . 40 94 Average Temperature 28 | . 27 . 12 53 Received Heat Transfer 196 | . 99 . 57 40 Siege Activations . | . . . . . Martial Activations . | . . . . . Shielding Activations . | . . . . . Robots Disrupted . | . . . . . Combat Hostiles . | . . . . . Robots Corrupted . | . . . . . Combat Hostiles . | . . . . . Parts Fried . | . . . . . Impact Corruptions 1 | . . . 1 . Robots Melted . | . . . . . Combat Hostiles . | . . . . . Parts Melted . | . . . . . Heat Transferred 1221 | . 481 . 592 148 Parts Sabotaged . | . . . . . Parts Stolen . | . . . . . Parts Stripped . | . . . . . Power Chain Reactions . | . . . . . Alert | -11 -10 -10 -9 -9 ------- Run | Yrd Mat Min Mat Min Maximum Alert Level . | . . . . . Low Security (%) 100 | 100 100 100 100 100 Level 1 . | . . . . . Level 2 . | . . . . . Level 3 . | . . . . . Level 4 . | . . . . . Level 5 . | . . . . . High Security . | . . . . . Max Security . | . . . . . Peak Influence 125 | . 125 14 63 . Initial 14 | . . 14 . . Average 20 | . 43 . 27 . Influence Increases 446 | . 305 . 141 . Destroy 0b10 Robot/C 300 | . 220 . 80 . Destroy 0b10 Robot/NC 35 | . 20 . 15 . Destroy Leader 78 | . 44 . 34 . Allied During Kill 3 | . . . 3 . Successful Hack 6 | . 6 . . . Disable Machine 9 | . . . 9 . Partial Spotted 15 | . 15 . . . Influence Decreases 446 | . 261 44 140 1 Entered New Map 31 | . . 30 . 1 Time Decay 395 | . 241 14 140 . Lost Part 20 | . 20 . . . Squads Dispatched 2 | . . . 2 . Investigation 1 | . . . 1 . Extermination . | . . . . . Reinforcement 1 | . . . 1 . Assault . | . . . . . Garrison . | . . . . . Intercept . | . . . . . Searches Triggered . | . . . . . Construction Impeded . | . . . . . Haulers Reinforced . | . . . . . Active Scanning Responses . | . . . . . Cargo Convoy Interrupts . | . . . . . Stealth | -11 -10 -10 -9 -9 --------- Run | Yrd Mat Min Mat Min Distress Signals 1 | . . . 1 . Communications Jammed . | . . . . . Distress Signals . | . . . . . Times Spotted 47 | . 17 . 8 22 Peak Tracking Total 16 | . 6 . 2 16 Tactical Retreats . | . . . . . Traps | -11 -10 -10 -9 -9 ------- Run | Yrd Mat Min Mat Min Traps Triggered 2 | . . 1 1 . Indirectly . | . . . . . Trap Hack Attempts . | . . . . . Triggered . | . . . . . Disarmed 1 | . 1 . . . Reprogrammed . | . . . . . Reused . | . . . . . Traps Extracted . | . . . . . Installed . | . . . . . Triggered . | . . . . . Machines | -11 -10 -10 -9 -9 ---------- Run | Yrd Mat Min Mat Min Machines Disabled 1 | . . . 1 . Max in Single Turn 1 | . . . 1 . Machines Repaired . | . . . . . Machines Dismantled . | . . . . . Machines Sabotaged . | . . . . . Overloaded Fab Kills . | . . . . . Hacking | -11 -10 -10 -9 -9 --------- Run | Yrd Mat Min Mat Min Machines Accessed 8 | . 4 1 3 . Terminals 3 | . 2 . 1 . Fabricators . | . . . . . Repair Stations 2 | . 1 . 1 . Recycling Units 1 | . 1 . . . Scanalyzers 1 | . . . 1 . Garrison Access . | . . . . . Total Hacks 25 | . 18 1 6 . Successful 20 | . 15 1 4 . Failed 5 | . 3 . 2 . Catastrophic . | . . . . . Database Lockouts . | . . . . . Manual . | . . . . . Terminals 6 | . 5 . 1 . Fabricators . | . . . . . Repair Stations 7 | . 5 . 2 . Recycling Units 8 | . 8 . . . Scanalyzers 3 | . . . 3 . Garrison Access . | . . . . . Terminal Hacks 6 | . 5 1 . . Record 2 | . 2 . . . Robot Analysis 1 | . 1 . . . Prototype ID Bank 1 | . 1 . . . Open Door 1 | . . 1 . . Disarm Traps 1 | . 1 . . . Fabricator Hacks . | . . . . . Repair Station Hacks 6 | . 4 . 2 . Scan Component 3 | . 2 . 1 . Repair 3 | . 2 . 1 . Recycling Unit Hacks 6 | . 6 . . . Recycle Component 2 | . 2 . . . Process 1 | . 1 . . . Retrieve Matter 3 | . 3 . . . Scanalyzer 2 | . . . 2 . Insert Component 1 | . . . 1 . Analyze 1 | . . . 1 . Garrison Access Hacks . | . . . . . Unauthorized Hacks . | . . . . . Terminals . | . . . . . Fabricators . | . . . . . Repair Stations . | . . . . . Recycling Units . | . . . . . Scanalyzers . | . . . . . Garrison Access . | . . . . . Data Cores Recovered . | . . . . . Used . | . . . . . Hacking Detections 4 | . 3 . 1 . Full Trace Events 2 | . 1 . 1 . Feedback Events . | . . . . . Feedback Blocked . | . . . . . Robot Schematics Acquired . | . . . . . Robots Built . | . . . . . Authchips . | . . . . . Time . | . . . . . Total Robot Build Rating . | . . . . . Part Schematics Acquired . | . . . . . Parts Built . | . . . . . Authchips . | . . . . . Time . | . . . . . Total Part Build Rating . | . . . . . Parts Repaired 3 | . 2 . 1 . Time 96 | . 52 . 44 . Parts Recycled 2 | . 2 . . . Recycled Matter 77 | . 77 . . . Retrieved Matter 77 | . 77 . . . Retrieved Components . | . . . . . Parts Scanalyzed 1 | . . . 1 . Part Schematics Acquired . | . . . . . Parts Damaged . | . . . . . Bothacking | -11 -10 -10 -9 -9 ------------ Run | Yrd Mat Min Mat Min Used RIF Installer . | . . . . . Robots Hacked . | . . . . . Non-combat . | . . . . . Combat . | . . . . . Robot Hacks Applied . | . . . . . Relay Couplers Released . | . . . . . Fabnet Peak Effective % . | . . . . . Robots Rewired . | . . . . . Allies Hacked . | . . . . . Hacks Repelled . | . . . . . Allies | -11 -10 -10 -9 -9 -------- Run | Yrd Mat Min Mat Min Total Allies 1 | . . 1 . . Largest Group 1 | . . 1 1 . Highest-Rated Group 31 | . . 31 31 . Highest-Rated Ally 31 | . . 31 31 . Total Orders . | . . . . . Ally Attacks 8 | . . . 8 . Total Damage 109 | . . . 109 . Kills 1 | . . . 1 . Allies Corrupted . | . . . . . Allies Melted . | . . . . . Intel | -11 -10 -10 -9 -9 ------- Run | Yrd Mat Min Mat Min Active Infowar (turns) . | . . . . . Robot Analysis Total 1 | . 1 . . . Derelict Logs Recovered 1 | . . 1 . . Drone Launches . | . . . . . Drone Recoveries . | . . . . . Exploration | -11 -10 -10 -9 -9 ------------- Run | Yrd Mat Min Mat Min Turns Passed 1884 | 255 631 583 360 55 Spaces Moved 1212 | 109 477 355 250 21 Core 15 | 15 . . . . Treads . | . . . . . Legs . | . . . . . Wheels 1197 | 94 477 355 250 21 Hover . | . . . . . Flight . | . . . . . Fastest Speed 50 | 50 90 110 110 110 Average Speed 104 | 85 101 110 110 112 Slowest Speed 155 | 100 140 110 110 155 Overloaded Moves . | . . . . . Propulsion Burnouts . | . . . . . Robots Hopped . | . . . . . Potential Cave-ins . | . . . . . Cave-ins Triggered . | . . . . . Exploration Rate (%) 33 | 9 61 53 32 10 Regions Visited 4 Branch Regions 2 Pre-discovered Areas . | . . . . . Known Exits Taken 1 | . . 1 . . Unknown Exits Taken 3 | 1 1 . 1 . Scrap Searched 1 | . . 1 . . Spaces Dug . | . . . . . Terrain Destroyed . | . . . . . Melee . | . . . . . Projectile . | . . . . . AOE . | . . . . . Terrain Rammed . | . . . . . Walls Destroyed . | . . . . . Machines Disabled . | . . . . . Actions | -11 -10 -10 -9 -9 --------- Run | Yrd Mat Min Mat Min Total 1719 | 270 556 548 309 36 Wait 367 | 146 13 185 23 . Move 1208 | 108 476 354 249 21 Hop . | . . . . . Pick Up 40 | 9 17 8 6 . Fast Attach 3 | . . . 3 . Attach 15 | 6 4 . 1 4 Detach . | . . . . . Swap 12 | . 11 . 1 . Drop 7 | 1 2 1 3 . Fire 62 | . 33 . 18 11 Melee . | . . . . . Ram 5 | . . . 5 . Kick . | . . . . . Crush . | . . . . . Escape Stasis . | . . . . . Rewire . | . . . . . Trap . | . . . . . Miscellaneous . | . . . . . Route ------- -11/Scrapyard -10/Materials (discovered 2 exits: *Mat / *Min) -10/Mines (discovered 3 exits: *Mat x2 / [*Sub]) -9/Materials -9/Mines History --------- Turn | Location | Event 76 | -11/Scrapyard | Discovered new exit (range 16) 256 | -11/Scrapyard | Entered Materials 330 | -10/Materials | Build established: Mutant 405 | -10/Materials | Discovered new exit (range 13) 519 | -10/Materials | Repaired Med. Laser? 540 | -10/Materials | Discovered new exit (range 12) 848 | -10/Materials | Repaired Assault Rifle 887 | -10/Materials | Entered Mines 1144 | -10/Mines | Discovered new exit (range 6) 1195 | -10/Mines | Discovered new exit (range 15) 1284 | -10/Mines | Found a damaged Exp. Sensor Array with a note attached 1288 | -10/Mines | Found Prototype Device 1353 | -10/Mines | Identified exit to Materials 1360 | -10/Mines | Met a Derelict who couldn't figure out how to use a Trap Extractor 1462 | -10/Mines | Received a Mining Laser from a helpful Derelict 1470 | -10/Mines | Entered Materials 1470 | -9/Materials | Accompanied by 1 ally 1470 | -9/Materials | Evolved 2 slots: Power x1, Utility x1 1487 | -9/Materials | Identified Exp. Sensor Array 1685 | -9/Materials | Discovered new exit (range 8) 1792 | -9/Materials | Repaired Broken Hvy. Assault Rifle 1830 | -9/Materials | Entered Mines 1831 | -9/Mines | Assembled infested the area 1875 | -9/Mines | Core integrity fell below 50% 1881 | -9/Mines | Core integrity fell below 20% 1885 | -9/Mines | Destroyed by as-94841 with Assembled Blade Last Messages --------------- as-64018 destroyed. T-07 Excavator destroyed. as-85969 destroyed. The unstable cave ceiling collapses. Ion Engine destroyed. Assault Rifle destroyed. K-01 Serf collects debris. The unstable cave ceiling collapses. D-53 Grenadier destroyed. as-10181 destroyed. Identified Imp. Flight Unit. Faulty integration triggers energy drain (-60). The unstable cave ceiling collapses. K-01 Serf collects debris. as-60519 destroyed. System corrupted: Component data lost. K-01 Serf collects debris. as-94297 destroyed. The unstable cave ceiling collapses. K-01 Serf collects debris. Map ----- +----------------------------------------------------+ | ?????????????????????????????????????????????????? | | ?????????????????????????????????????????????????? | | ?????????????????????????????????????????????????? | | ?????????????????????????????????????????????????? | | ?????????????????????????????????????????????????? | | ?????????????????????????????????????????????????? | | ?????????????????????????????????????????????????? | | ?????????????????????????????????????????????????? | | ?????????????????????????????????????????????????? | | ?????????????????????????????????????????????????? | | ?????????????????????????????????????????????????? | | ?????????????????????????????????????????????????? | | ?????????????????????????????????????????????????? | | ?????????????????????????????????????????????????? | | ???????????????????????????????????###???????????? | | ?????????????????????????????????? ##??????????? | | ????????????????????????????????? #??????????? | | ????????????????????####???????? #??????????? | | ????????????????????? #?###### ##?????????? | | ?????????????????????# ### # ??????????? | | ?????????????????????# # $ ????????? | | ????????????????????##= a ????????? | | ????????????????????# a # ??????? | | ???????????????????## # a #?????????? | | ??????????????????## %a% #??????????? | | ?????????????????## @ #??????????? | | ????????????????## k !a #?????????? | | ????????????????# r # a #?????????? | | ????????????????## ##??? ##?????????? | | ???????????# ##### # # ##?????? ##??????????? | | ???????????# % ##########????????????????????? | | ???????????####### #####?????????????????????????? | | ???????????????# #?????????????????????????? | | ???????????????# #?????????????????????????? | | ???????????????# #?????????????????????????? | | ???????????????# #?????????????????????????? | | ???????????????# #?????????????????????????? | | ???????????????# #?????????????????????????? | | ???????????????#########?????????????????????????? | | ?????????????????????????????????????????????????? | | ?????????????????????????????????????????????????? | | | | | | | | | | | | | | | | | | | +----------------------------------------------------+ Best States ------------- Heat Dissipation 28 Energy Generation 15 Energy Capacity 450 Matter Stores 470 Matter Capacity 500 Sight Range 16 Terrain Scan Density 10 Resistance: KI 20 Resistance: TH 20 Resistance: EX 20 Resistance: EM 20 Resistance: I 20 Resistance: S 20 Resistance: P 20 Evasion (%) 42 Offensive Hacking 10 Item Schematics ----------------- None Robot Schematics ------------------ None Fabricated ------------ Nothing Repaired ---------- Med. Laser | 47% | -10/Materials Assault Rifle | 17% | -10/Materials Hvy. Assault Rifle | 31% | -9/Materials | Broken Alien Tech Used ----------------- None Achievements -------------- Safety First Challenges ------------ None Game ------ Seed ThunderMetafieldComputer Manual? 0 Play Time 00:53:42 Cumulative 4.6 hours Start 2025.09.16 @ 04:13:26 End 2025.09.26 @ 20:14:48 Sessions 3 Manual Loads 0 Difficulty Adventurer Special Mode None Game No. 5 Rogue 0 Adventurer 5 Explorer 0 Win Type - Total 0 Types 0/0/0/0/0/0/0/0/0/0 Lore% 1 Gallery% 6 Achievement% 8 Wizard Run 0 Options --------- Layout 1 ASCII 0 Keyboard 0 Movement Numpad Keybinds 0 Fullscreen 1 Font 16/SmallcapsGlow Map View 25x20 Zoom Use 40% Tactical HUD 0 Map Filters NONE Filters NONE Steam SD RUN: 4a884842-1f6f-49aa-828f-96beb9a4fc5c